lending/lending_fUSD_20240911
["ID","MTS","AMOUNT","RATE_DAILY","PERIOD"]
[337750587,1726042239137,-150.0,0.00014831,2]
[337750588,1726042239146,-150.0,0.00014832,2]
[337750589,1726042239156,-150.0,0.00014834,2]
[337750590,1726042239165,-150.0,0.00014835,2]
[337750591,1726042239174,-150.0,0.00014836,2]
[337750592,1726042239185,-150.0,0.00014838,2]
[337750593,1726042239195,-150.0,0.00014838,2]
[337750594,1726042239204,-150.0,0.00014839,2]
[337750595,1726042239214,-150.0,0.00014843,2]
[337750596,1726042239223,-150.0,0.00014844,2]
[337750597,1726042239232,-150.0,0.00014852,2]
[337750598,1726042239242,-150.0,0.00014861,2]
[337750599,1726042239251,-150.0,0.00014862,2]
[337750600,1726042239260,-150.0,0.00014864,2]
[337750601,1726042239269,-150.0,0.00014871,2]
[337750602,1726042239278,-150.0,0.00014874,2]
[337750603,1726042239287,-150.0,0.00014876,2]
[337750604,1726042239297,-150.0,0.00014877,2]
[337750605,1726042239306,-150.0,0.0001488,2]
[337750606,1726042239315,-150.0,0.00014885,2]
[337750607,1726042239328,-150.0,0.00014889,2]
[337750608,1726042239338,-150.0,0.0001489,2]
[337750609,1726042239347,-150.0,0.0001489,2]
[337750610,1726042239357,-150.0,0.00014893,2]
[337750611,1726042239367,-150.0,0.00014895,2]
[337750612,1726042239376,-150.0,0.00014895,2]
[337750613,1726042239386,-150.0,0.00014899,2]
[337750614,1726042239396,-152.84,0.000149,31]
[337750615,1726042239405,-152.84,0.000149,31]
[337750616,1726042239414,-152.84,0.000149,31]
[337750617,1726042239423,-152.84,0.000149,31]
[337750618,1726042239433,-152.84,0.000149,31]
[337750619,1726042239443,-152.84,0.000149,31]
[337750620,1726042239454,-152.84,0.000149,31]
[337750621,1726042239464,-152.84,0.000149,31]
[337750622,1726042239473,-152.84,0.000149,31]
[337750623,1726042239483,-152.84,0.000149,31]
[337750624,1726042239492,-152.84,0.000149,31]
[337750625,1726042239501,-152.84,0.000149,31]
[337750626,1726042239510,-152.84,0.000149,31]
[337750627,1726042239519,-152.84,0.000149,31]
[337750628,1726042239527,-152.84,0.000149,31]
[337750629,1726042239537,-150.0,0.00014901,2]
[337750630,1726042239546,-150.0,0.00014902,2]
[337750631,1726042239556,-150.0,0.00014905,2]
[337750632,1726042239565,-150.0,0.00014907,2]
[337750633,1726042239575,-150.0,0.00014909,2]
[337750634,1726042239584,-150.0,0.00014909,2]
[337750635,1726042239593,-150.0,0.00014912,2]
[337750636,1726042239602,-150.0,0.00014919,2]
[337750637,1726042239611,-150.0,0.00014926,2]
[337750638,1726042239621,-150.0,0.00014927,2]
[337750639,1726042239630,-150.0,0.00014928,2]
[337750640,1726042239640,-150.0,0.00014938,2]
[337750641,1726042239649,-150.0,0.0001494,2]
[337750642,1726042239659,-150.0,0.0001494,2]
[337750643,1726042239668,-150.0,0.00014947,2]
[337750644,1726042239678,-150.0,0.00014947,2]
[337750645,1726042239687,-150.0,0.00014952,2]
[337750646,1726042239696,-150.0,0.00014954,2]
[337750647,1726042239705,-150.0,0.00014957,2]
[337750648,1726042239714,-150.0,0.00014959,2]
[337750649,1726042239724,-150.0,0.00014959,2]
[337750650,1726042239733,-150.0,0.0001496,2]
[337750651,1726042239742,-150.0,0.0001497,2]
[337750652,1726042239751,-150.0,0.00014971,2]
[337750653,1726042239760,-150.0,0.00014971,2]
[337750654,1726042239769,-150.0,0.00014972,2]
[337750655,1726042239779,-150.0,0.00014972,2]
[337750656,1726042239787,-150.0,0.00014973,2]
[337750657,1726042239796,-150.0,0.00014977,2]
[337750658,1726042239806,-150.0,0.00014978,2]
[337750659,1726042239815,-150.0,0.0001498,2]
[337750661,1726042240002,-150.0,0.0001498,2]
[337750662,1726042240012,-150.0,0.00014981,2]
[337750663,1726042240022,-150.0,0.00014983,2]
[337750664,1726042240031,-150.0,0.00014987,2]
[337750665,1726042240040,-150.0,0.00014989,2]
[337750666,1726042240049,-150.0,0.00014992,2]
[337750667,1726042240059,-150.0,0.00014993,2]
[337750668,1726042240069,-33506.15451746,0.00014995,3]
[337750669,1726042240078,-150.0,0.00014995,2]
[337750670,1726042240087,-220363.81082124,0.00015,2]
[337750671,1726042240266,-2698465.42108771,0.00015,2]
[337750691,1726042240499,-150.0,0.00014747,2]
[337750693,1726042240508,-150.0,0.00014792,2]
[337750695,1726042240518,-150.0,0.00014799,2]
[337750697,1726042240527,-150.0,0.00014857,2]
[337750699,1726042240536,-150.0,0.0001493,2]
[337750701,1726042240545,-150.0,0.00014934,2]
[337750703,1726042240554,-70.49511104,0.00015,2]
[337750705,1726042240565,-5691.99408374,0.00015,2]
[337750707,1726042240577,-16876.40537994,0.00015,2]
[337750710,1726042240606,-150.0,0.00014778,2]
[337750712,1726042240615,-211.95805665,0.00015,2]
[337750714,1726042240626,-283.785,0.00015,2]
[337750721,1726042242978,-150.0,0.00014757,2]
[337750722,1726042242988,-150.0,0.00014767,2]
[337750724,1726042242997,-150.0,0.00014806,2]
[337750726,1726042243006,-150.0,0.00014861,2]
[337750727,1726042243015,-150.0,0.00014887,2]
[337750728,1726042243024,-150.0,0.00014908,2]
[337750729,1726042243033,-150.0,0.00014946,2]
[337750730,1726042243042,-150.0,0.00014972,2]
[337750731,1726042243051,-3698.64665841,0.00015,2]
[337750732,1726042243062,-5753.72585808,0.00015,2]
[337750733,1726042243083,-5976.22869519,0.00015,2]
[337750734,1726042243094,-6599.15486515,0.00015,2]
[337750735,1726042243105,-1248.9053803,0.00015,2]
[337750736,1726042243116,-11444.947811,0.00015,2]
[337750737,1726042243130,-701.11,0.00015,2]
[337750738,1726042243141,-376213.93059568,0.00015,2]
[337750746,1726042243976,-6261.42364388,0.00015,2]
[337750747,1726042243988,-550.55,0.00015,2]
[337750748,1726042243999,-20226.84112589,0.00015,2]
[337750751,1726042291376,150.0,0.00014847,120]
[337750752,1726042306086,500.0,0.00010068,2]
[337750753,1726042411364,150.0,0.00024125,120]
[337750754,1726042531099,150.0,0.0002535,120]
[337750755,1726042590602,150.0,0.00024742,120]
[337750756,1726042650866,150.0,0.00024929,120]
[337750757,1726042685958,249.49,0.00010959,2]
[337750758,1726042705073,359.23,0.00011162,2]
[337750759,1726042830561,150.0,0.00021587,120]
[337750760,1726042894700,150.0,0.00024171,120]
[337750761,1726042895542,500.0,0.00012,2]
[337750762,1726042951883,150.0,0.00017899,120]
[337750763,1726043131351,150.0,0.00022527,120]
[337750764,1726043191928,150.0,0.00021532,120]
[337750765,1726043251364,150.0,0.00020715,120]
[337750766,1726043259999,436.12,0.00011582,2]
[337750767,1726043311363,150.0,0.00014837,120]
[337750770,1726043371389,150.0,0.00014954,120]
[337750771,1726043430586,150.0,0.00022911,120]
[337750779,1726043432200,-200.0,0.0001234,2]
[337750780,1726043432210,-2440.32620881,0.00012345,2]
[337750781,1726043432219,-520.0,0.00012495,2]
[337750782,1726043432229,-112.77591565,0.00012501,2]
[337750783,1726043432240,-387.22408435,0.00012501,2]
[337750784,1726043432249,-165.447,0.0001274,2]
[337750785,1726043432259,-400.75497355,0.00012808,2]
[337750786,1726043432272,-99.24502645,0.00012808,2]
[337750787,1726043432281,-2230.19313259,0.000129,2]
[337750788,1726043432291,-182.27851587,0.000129,2]
[337750789,1726043432301,-319.21099951,0.000129,2]
[337750790,1726043432310,-500.0,0.00012973,2]
[337750791,1726043432320,-391.80936884,0.00012973,2]
[337750792,1726043432329,-500.0,0.00012973,2]
[337750793,1726043432339,-155.01,0.0001299,2]
[337750794,1726043432348,-155.01,0.0001299,2]
[337750795,1726043432357,-155.01,0.0001299,2]
[337750796,1726043432366,-155.01,0.0001299,2]
[337750797,1726043432376,-155.01,0.0001299,2]
[337750798,1726043432385,-155.01,0.0001299,2]
[337750799,1726043432395,-155.01,0.0001299,2]
[337750800,1726043432404,-155.01,0.0001299,2]
[337750801,1726043432414,-155.01,0.0001299,2]
[337750802,1726043432424,-155.01,0.0001299,2]
[337750803,1726043432434,-155.01,0.0001299,2]
[337750804,1726043432444,-155.01,0.0001299,2]
[337750805,1726043432454,-155.01,0.0001299,2]
[337750806,1726043432464,-155.01,0.0001299,2]
[337750807,1726043432474,-155.01,0.0001299,2]
[337750808,1726043432484,-155.01,0.0001299,2]
[337750809,1726043432493,-155.01,0.0001299,2]
[337750810,1726043432503,-155.01,0.0001299,2]
[337750811,1726043432513,-155.01,0.0001299,2]
[337750812,1726043432525,-155.01,0.0001299,2]
[337750813,1726043432534,-500.0,0.00012999,2]
[337750814,1726043432544,-500.0,0.00012999,2]
[337750815,1726043432554,-500.0,0.00012999,2]
[337750816,1726043432565,-500.0,0.00012999,2]
[337750817,1726043432574,-568.60934491,0.00012999,2]
[337750818,1726043432595,-72.65692881,0.00012999,2]
[337750819,1726043432605,-489.97103638,0.00012999,2]
[337750820,1726043432615,-37.46496859,0.00012999,2]
[337750821,1726043432627,-112.53503141,0.00012999,2]
[337750822,1726043432637,-150.99,0.00013,2]
[337750823,1726043432647,-5059.90529718,0.00013,2]
[337750824,1726043432660,-772.07093939,0.00013,2]
[337750825,1726043432674,-534.56001,0.00013,2]
[337750826,1726043432690,-12809.27756263,0.00013,2]
[337750827,1726043432700,-355615.74690182,0.00013,2]
[337750828,1726043432712,-661.83076547,0.00013,2]
[337750829,1726043432731,-609.63404358,0.00013,2]
[337750830,1726043432743,-756.03810701,0.00013,2]
[337750831,1726043432754,-1182.71091713,0.00013,2]
[337750832,1726043432766,-2047.29164152,0.00013,2]
[337750833,1726043432789,-4383.83800905,0.00013,2]
[337750836,1726043438149,-5878.35106938,0.00013,2]
[337750837,1726043438160,-18092.13124243,0.00013,2]
[337750838,1726043438172,-6057.23386798,0.00013,2]
[337750839,1726043438183,-13121.56862149,0.00013,2]
[337750840,1726043438195,-24654.16122351,0.00013,2]
[337750841,1726043438207,-22243.24876,0.00013,2]
[337750842,1726043438218,-465.81771016,0.00013,2]
[337750843,1726043438237,-290.08119832,0.00013,2]
[337750844,1726043438248,-11397.85447334,0.00013,2]
[337750845,1726043438259,-858.216,0.00013,2]
[337750846,1726043438271,-54589.35873654,0.00013,2]
[337750847,1726043438282,-532.99766625,0.00013,2]
[337750848,1726043438297,-459.01463883,0.00013,2]
[337750849,1726043438307,-4476.92201645,0.00013,2]
[337750850,1726043438324,-2570.50200004,0.00013,2]
[337750851,1726043438335,-261.569,0.00013,2]
[337750852,1726043438347,-5106.10000249,0.00013,2]
[337750853,1726043438358,-1363.02997939,0.00013,2]
[337750854,1726043438384,-463.4202856,0.00013,2]
[337750855,1726043438395,-1379.86572107,0.00013,2]
[337750856,1726043438443,-2352797.45195103,0.00013,2]
[337750857,1726043438455,-662807.17135979,0.00013,2]
[337750858,1726043438466,-1398218.83588162,0.00013,2]
[337750859,1726043438478,-2426.81983942,0.00013,2]
[337750860,1726043438489,-1152.06794487,0.00013,2]
[337750861,1726043438500,-520.32057881,0.00013,2]
[337750862,1726043438512,-3413.85644702,0.00013,2]
[337750863,1726043438524,-4032.83102732,0.00013,2]
[337750864,1726043438537,-16932.32639603,0.00013,2]
[337750874,1726043440214,-1668.94830626,0.00013,2]
[337750876,1726043440226,-1028.443,0.00013,2]
[337750877,1726043440237,-2327.8579357,0.00013,2]
[337750878,1726043440248,-340.78144659,0.00013,2]
[337750879,1726043440259,-639.318,0.00013,2]
[337750880,1726043440271,-1156.2,0.00013,2]
[337750881,1726043440283,-2689.99555988,0.00013,2]
[337750882,1726043440294,-333.81892786,0.00013,2]
[337750883,1726043440305,-792.8225456,0.00013,2]
[337750884,1726043440316,-1301.90749695,0.00013,2]
[337750885,1726043440327,-3784.86407962,0.00013,2]
[337750886,1726043440338,-561.97850452,0.00013,2]
[337750887,1726043440349,-293.70089592,0.00013,2]
[337750888,1726043440360,-397.10374505,0.00013,2]
[337750889,1726043440371,-14769.35656793,0.00013,2]
[337750890,1726043440382,-4786.36046934,0.00013,2]
[337750891,1726043440393,-3198.49104601,0.00013,2]
[337750892,1726043440404,-279.67566801,0.00013,2]
[337750893,1726043440415,-2835.60000006,0.00013,2]
[337750894,1726043440426,-621.82935437,0.00013,2]
[337750895,1726043440442,-600.70263248,0.00013,2]
[337750896,1726043440453,-3084.36909757,0.00013,2]
[337750897,1726043440464,-16040.5,0.00013,2]
[337750898,1726043440514,-1596.88006637,0.00013,2]
[337750899,1726043440525,-308922.40255435,0.00013,2]
[337750900,1726043440537,-322.50000001,0.00013,2]
[337750901,1726043440548,-350.16454887,0.00013,2]
[337750926,1726043443181,-1095.78215054,0.00013,2]
[337750928,1726043443193,-19484.55515102,0.00013,2]
[337750930,1726043443204,-863.18646921,0.00013,2]
[337750932,1726043443215,-1317.00601232,0.00013,2]
[337750935,1726043443245,-1240.38172753,0.00013,2]
[337750936,1726043443256,-2999.6587433,0.00013,2]
[337750937,1726043443311,-2581.2614539,0.00013,2]
[337750938,1726043443322,-11553.72772845,0.00013,2]
[337750939,1726043443333,-1308.00000413,0.00013,2]
[337750940,1726043443372,-541.92539657,0.00013,2]
[337750941,1726043443383,-697.68583,0.00013,2]
[337750942,1726043443395,-720.02828238,0.00013,2]
[337750943,1726043443406,-502.49912,0.00013,2]
[337750944,1726043443416,-485.29999995,0.00013,2]
[337750946,1726043444439,-7595.75675507,0.00013,2]
[337750947,1726043444450,-23521.76724492,0.00013,2]
[337750948,1726043444465,-505.5664408,0.00013,2]
[337750949,1726043446402,-12706.10000001,0.00013,2]
[337750961,1726043446711,-1011.57802586,0.00013,2]
[337750963,1726043446723,-319.0,0.00013,2]
[337750965,1726043446735,-572.08599567,0.00013,2]
[337750968,1726043446747,-399.98561821,0.00013,2]
[337750970,1726043446759,-89411.58007121,0.00013,2]
[337750972,1726043446770,-5771.89169257,0.00013,2]
[337750974,1726043446782,-37162.56565596,0.00013,2]
[337750975,1726043446795,-3627.57220054,0.00013,2]
[337750976,1726043446811,-541.614,0.00013,2]
[337750977,1726043446822,-24597.39971023,0.00013,2]
[337750978,1726043446833,-9804.0114,0.00013,2]
[337750979,1726043485612,500.0,0.00011164,2]
[337750980,1726043821841,594.54,0.00010404,2]
[337750981,1726043899395,1005.5275176,0.00012,2]
[337750982,1726043957364,150.48,0.00010959,2]
[337750983,1726043960059,23900.0,0.00011745,2]
[337750984,1726043992814,625.57,0.00011768,2]
[337750985,1726044023461,165.16,0.00011735,2]
[337750986,1726044095709,201.27,0.00011735,2]
[337750987,1726044140221,164.33,0.00011756,2]
[337750988,1726044195138,250.0,0.00011756,2]
[337750989,1726044207252,1050.0,0.00011,2]
[337750990,1726044242180,733.78,0.00011781,2]
[337750991,1726044313242,730.44,9.832e-05,2]
[337750992,1726044321248,250.0,0.00011726,2]
[337750993,1726044327405,250.0,0.00011726,2]
[337750994,1726044354711,1988.54,0.0001175,2]
[337750995,1726044362217,416.0,0.00011775,2]
[337750996,1726044379496,256.81,0.00011896,2]
[337750997,1726044387785,233.39425541,0.00011837,2]
[337750999,1726044455103,152.56,0.00010959,2]
[337751000,1726044460197,170.81,0.00011499,2]
[337751001,1726044482521,12978.56,0.00011499,2]
[337751002,1726044515549,193.27,0.00011523,2]
[337751003,1726044553197,174.35,0.00011478,2]
[337751006,1726044632280,-158.52,0.00012013,2]
[337751007,1726044632289,-158.52,0.00012017,2]
[337751008,1726044632299,-158.52,0.00012021,2]
[337751009,1726044632308,-158.52,0.00012024,2]
[337751010,1726044632317,-158.52,0.00012028,2]
[337751011,1726044632326,-158.52,0.00012032,2]
[337751012,1726044632335,-158.52,0.00012036,2]
[337751013,1726044632343,-158.52,0.00012039,2]
[337751014,1726044632352,-158.52,0.00012043,2]
[337751015,1726044632361,-158.52,0.00012047,2]
[337751016,1726044632370,-1164.08,0.00012047,2]
[337751017,1726044632379,-1817.1,0.00012047,2]
[337751018,1726044632388,-365.21,0.00012047,2]
[337751019,1726044632397,-844.79,0.00012047,2]
[337751020,1726044632406,-1499.6,0.00012047,2]
[337751021,1726044632415,-499.99,0.00012047,2]
[337751022,1726044632425,-158.52,0.00012051,2]
[337751023,1726044632434,-158.52,0.00012054,2]
[337751024,1726044632443,-158.52,0.00012058,2]
[337751025,1726044632453,-158.52,0.00012062,2]
[337751026,1726044632462,-158.52,0.00012066,2]
[337751027,1726044632471,-158.52,0.00012069,2]
[337751028,1726044632480,-158.52,0.00012073,2]
[337751029,1726044632489,-730.44,0.00012096,2]
[337751030,1726044632499,-584.0,0.00012284,2]
[337751031,1726044632511,-179.36,0.00012329,2]
[337751032,1726044632521,-999.99,0.00012533,2]
[337751033,1726044632530,-499.99,0.00012534,2]
[337751034,1726044632539,-917.07,0.00012534,2]
[337751035,1726044632551,-299.99,0.00012534,2]
[337751036,1726044632561,-150.99,0.00012534,2]
[337751037,1726044632570,-1936.54303228,0.0001287,2]
[337751038,1726044632579,-171.17415423,0.000129,2]
[337751039,1726044632589,-3854.32304877,0.000129,2]
[337751040,1726044632598,-1975.15528001,0.000129,2]
[337751041,1726044632608,-319.2109995,0.000129,2]
[337751042,1726044632617,-425.31653702,0.000129,2]
[337751043,1726044632627,-923.54056486,0.000129,2]
[337751044,1726044632637,-174.35,0.00012912,2]
[337751045,1726044632647,-500.0,0.00012973,2]
[337751046,1726044632657,-500.0,0.00012973,2]
[337751047,1726044632666,-5138.1737,0.00012986,2]
[337751048,1726044632676,-154.54,0.0001299,2]
[337751049,1726044632686,-216.74872698,0.0001299,2]
[337751050,1726044632696,-154.54,0.0001299,2]
[337751051,1726044632706,-154.54,0.0001299,2]
[337751052,1726044632715,-154.54,0.0001299,2]
[337751053,1726044632725,-154.54,0.0001299,2]
[337751054,1726044632735,-154.54,0.0001299,2]
[337751055,1726044632745,-154.54,0.0001299,2]
[337751056,1726044632755,-500.0,0.00012999,2]
[337751057,1726044632767,-345.69537144,0.00012999,2]
[337751058,1726044632776,-500.0,0.00012999,2]
[337751059,1726044632786,-500.0,0.00012999,2]
[337751060,1726044632796,-577.05622928,0.00012999,2]
[337751061,1726044632806,-230.78402547,0.00012999,2]
[337751062,1726044632816,-9587.9069046,0.00013,2]
[337751063,1726044632825,-49141.90077958,0.00013,2]
[337751064,1726044632838,-298.62086198,0.00013,2]
[337751065,1726044632850,-552.46305185,0.00013,2]
[337751066,1726044632878,-4835.63922378,0.00013,2]
[337751067,1726044632890,-2312.02556244,0.00013,2]
[337751068,1726044632902,-5295.56352255,0.00013,2]
[337751069,1726044632913,-4957.06675285,0.00013,2]
[337751074,1726044638408,-7106.90865003,0.000129,2]
[337751075,1726044638417,-22830.18769499,0.00013,2]
[337751087,1726044640310,-873.4146795,0.00013,2]
[337751090,1726044640321,-666.66,0.00013,2]
[337751092,1726044640333,-1050.1,0.00013,2]
[337751093,1726044640344,-2063.47265773,0.00013,2]
[337751094,1726044640371,-107921.05984795,0.00013,2]
[337751095,1726044640382,-1058.06846759,0.00013,2]
[337751096,1726044640393,-4036.9,0.00013,2]
[337751097,1726044640404,-1995.77690403,0.00013,2]
[337751098,1726044640434,-515.56383828,0.00013,2]
[337751099,1726044640445,-582.83643837,0.00013,2]
[337751100,1726044640456,-1979.79404271,0.00013,2]
[337751101,1726044640467,-61654.04082101,0.00013,2]
[337751102,1726044640477,-282.6,0.00013,2]
[337751103,1726044640488,-507.82898082,0.00013,2]
[337751104,1726044640500,-760.74789201,0.00013,2]
[337751105,1726044640516,-1182.8,0.00013,2]
[337751106,1726044640554,-256.62236691,0.00013,2]
[337751107,1726044640565,-1195.16112444,0.00013,2]
[337751108,1726044640576,-1340.09190073,0.00013,2]
[337751109,1726044640587,-320.91406874,0.00013,2]
[337751110,1726044640599,-1736.41306025,0.00013,2]
[337751249,1726044643365,-500.0,0.00012999,2]
[337751251,1726044643375,-500.0,0.00012999,2]
[337751253,1726044643384,-974068.57366312,0.00013,2]
[337751257,1726044643422,-24420.000744,0.00013,2]
[337751259,1726044643433,-40641.29442764,0.00013,2]
[337751265,1726044643480,-266.87851404,0.00013,2]
[337751270,1726044644655,-1016.1,0.00013,2]
[337751271,1726044644678,-1000.0,0.00013,2]
[337751273,1726044646367,-2335.18041205,0.00013,2]
[337751274,1726044646379,-1491.15000001,0.00013,2]
[337751275,1726044646430,-1089.88117537,0.00013,2]
[337751276,1726044646442,-2020.29015397,0.00013,2]
[337751277,1726044646826,-2762.00668893,0.00013,2]
[337751278,1726044646837,-329.20700671,0.00013,2]
[337751279,1726044646848,-1151.46518539,0.00013,2]
[337751280,1726044646858,-447.15861961,0.00013,2]
[337751281,1726044646869,-1383.40857251,0.00013,2]
[337751282,1726044646881,-5605.89535856,0.00013,2]
[337751283,1726044646891,-824.59977352,0.00013,2]
[337751284,1726044646902,-1750.24114476,0.00013,2]
[337751285,1726044646913,-316.01403212,0.00013,2]
[337751286,1726044646941,-2497.79507697,0.00013,2]
[337751287,1726044646952,-86322.11895239,0.00013,2]
[337751288,1726044646962,-16062.3791908,0.00013,2]
[337751289,1726044646973,-362.68407531,0.00013,2]
[337751290,1726044646984,-430.72220257,0.00013,2]
[337751291,1726044702241,249.37,0.00010959,2]
[337751292,1726044810054,806.46,0.00010818,2]
[337751293,1726044953837,157.63,0.00010959,2]
[337751294,1726044983632,1000.0,0.00011709,2]
[337751295,1726045051937,229.32,0.0001164,2]
[337751296,1726045180396,1123.15,0.00011651,2]
[337751297,1726045206008,250.0,0.00011659,2]
[337751298,1726045303579,164.24,0.0001166,2]
[337751299,1726045335120,834.53,9.751e-05,2]
[337751300,1726045368298,250.0,0.00011669,2]
[337751301,1726045395903,250.0,0.00011672,2]
[337751302,1726045478936,200.0,0.00011685,2]
[337751303,1726045480608,237.01,0.00010959,2]
[337751304,1726045511112,757.79150662,0.00011935,2]
[337751305,1726045513180,150.00000001,0.00011688,2]
[337751306,1726045528761,229.35,0.00011624,2]
[337751307,1726045654902,260.755,0.00011973,2]
[337751308,1726045764069,561.57,0.00011317,2]
[337751309,1726045766885,-206.19184628,0.00012015,2]
[337751311,1726045827856,912.44,9.433e-05,2]
[337751312,1726045828079,912.44,0.00011696,2]
[337751328,1726045831613,-2314.4383043,0.00012032,2]
[337751329,1726045831625,-540.7916957,0.00012032,2]
[337751330,1726045831634,-2855.23,0.00012035,2]
[337751331,1726045831644,-2855.23,0.00012038,2]
[337751332,1726045831653,-300.0,0.00012039,2]
[337751333,1726045831663,-150.0,0.0001204,2]
[337751334,1726045831672,-1979.63159264,0.0001204,2]
[337751335,1726045831683,-4670.58140367,0.0001204,2]
[337751336,1726045831694,-328.4348001,0.0001204,2]
[337751337,1726045831710,-1075.43,0.0001204,2]
[337751338,1726045831722,-849.97896667,0.0001204,2]
[337751339,1726045831733,-883.41898325,0.0001204,2]
[337751340,1726045831744,-3649.1702025,0.0001204,2]
[337751341,1726045831759,-36563.35405117,0.0001204,2]
[337751342,1726045831768,-2855.23,0.00012042,2]
[337751343,1726045831777,-2855.23,0.00012045,2]
[337751344,1726045831786,-2855.23,0.00012048,2]
[337751345,1726045831795,-2855.23,0.00012051,2]
[337751346,1726045831804,-299.99,0.00012051,2]
[337751347,1726045831813,-150.99,0.00012051,2]
[337751348,1726045831823,-499.99,0.00012051,2]
[337751349,1726045831832,-438.0,0.00012051,2]
[337751350,1726045831841,-150.99,0.00012051,2]
[337751351,1726045831850,-2855.23,0.00012054,2]
[337751352,1726045831859,-3409.86,0.00012054,2]
[337751354,1726045831868,-2855.23,0.00012057,2]
[337751355,1726045831878,-2855.23,0.00012061,2]
[337751357,1726045831887,-2855.23,0.00012064,2]
[337751358,1726045831896,-2855.23,0.00012067,2]
[337751359,1726045831906,-2855.23,0.0001207,2]
[337751360,1726045831915,-2855.23,0.00012073,2]
[337751361,1726045831924,-2855.23,0.00012077,2]
[337751362,1726045831933,-2855.23,0.0001208,2]
[337751363,1726045831942,-2855.23,0.00012083,2]
[337751364,1726045831951,-2855.23,0.00012086,2]
[337751365,1726045831960,-2855.23,0.00012089,2]
[337751366,1726045831969,-2855.23,0.00012092,2]
[337751367,1726045831981,-270.38327634,0.00012432,2]
[337751368,1726045831991,-22404.0205708,0.00012449,2]
[337751369,1726045832010,-468.3852,0.00012449,2]
[337751370,1726045832021,-328.01300429,0.00012449,2]
[337751371,1726045832032,-1390.07010212,0.00012449,2]
[337751372,1726045832043,-1143.0,0.00012449,2]
[337751373,1726045832055,-4019.00112279,0.00012449,2]
[337751374,1726045832064,-478.718433,0.0001268,2]
[337751375,1726045832075,-3343.54637494,0.0001268,2]
[337751376,1726045832083,-2.13185567,0.00012713,2]
[337751377,1726045832099,-322.1004871,0.00012713,2]
[337751378,1726045832108,-150.0,0.00012729,2]
[337751379,1726045832117,-150.0,0.0001273,2]
[337751380,1726045832126,-150.0,0.00012762,2]
[337751381,1726045832135,-150.0,0.00012764,2]
[337751382,1726045832144,-150.0,0.00012769,2]
[337751383,1726045832153,-948.5528,0.0001278,2]
[337751384,1726045832162,-291.4468,0.0001278,2]
[337751385,1726045832170,-38979.992,0.0001278,2]
[337751386,1726045832180,-860.67148572,0.0001278,2]
[337751387,1726045832194,-350.0,0.0001278,2]
[337751388,1726045837553,-500.0,0.00012779,2]
[337751389,1726045837562,-500.0,0.00012779,2]
[337751390,1726045837571,-509.57360251,0.00012779,2]
[337751391,1726045837580,-500.0,0.00012779,2]
[337751392,1726045837589,-500.0,0.00012779,2]
[337751393,1726045837598,-471.90473011,0.00012779,2]
[337751394,1726045837607,-438.89966008,0.00012779,2]
[337751395,1726045837617,-500.0,0.00012779,2]
[337751396,1726045837626,-500.0,0.00012779,2]
[337751397,1726045837635,-235.65727592,0.00012779,2]